Cogmind - Beta 11.1 @@@ ROGUE MODE // 2022.05.24 @ 11:38:20 Player: Demise Result: Destroyed by G-34 Mercenary with Small Laser Performance ------------- Evolutions (0) 0 Regions Visited (2) 400 Robots Destroyed (19) 95 Value Destroyed (331) 331 Prototype IDs (0) 0 Alien Tech Used (0) 0 Bonus (0) 0 TOTAL SCORE: 826 Bonus ------- None Cogmind --------- Core Integrity 0/250 Matter 260/300 Energy 250/250 System Corruption 0% Temperature Cool (62) Movement Rolling (130) Ox2 Location -10/Mines Parts ------- > --- POWER (1) -------- Ion Engine > --- PROPULSION (2) --- Compact Wheel Compact Wheel > --- UTILITY (2) ------ Huge Storage Unit Signal Interpreter > --- WEAPON (2) ------- Autogun Autogun > --- INVENTORY (25) --- Light Treads Light Treads Improved Aluminum Leg Improved Aluminum Leg Improved Aluminum Leg Improved Aluminum Leg Compact Wheel Large Storage Unit Experimental Sensor Array Seismic Detector Medium Armor Plating Medium Armor Plating Medium Armor Plating Medium Armor Plating Hardened Light Armor Plating Hardened Light Armor Plating Hardened Light Armor Plating Hardened Light Armor Plating Assault Rifle Autogun Autogun Mining Laser Plasma Cutter Plasma Cutter Makeshift Spear Peak State ------------ > --- POWER ------------ Ion Engine > --- PROPULSION ------- Compact Wheel Compact Wheel > --- UTILITY ---------- Huge Storage Unit Signal Interpreter > --- WEAPON ----------- Autogun Autogun > --- INVENTORY -------- Light Treads Light Treads Improved Aluminum Leg Improved Aluminum Leg Improved Aluminum Leg Improved Aluminum Leg Compact Wheel Large Storage Unit Experimental Sensor Array Seismic Detector Medium Armor Plating Medium Armor Plating Medium Armor Plating Medium Armor Plating Hardened Light Armor Plating Hardened Light Armor Plating Hardened Light Armor Plating Hardened Light Armor Plating Assault Rifle Autogun Autogun Mining Laser Plasma Cutter Plasma Cutter Makeshift Spear [Rating: 14] Favorites ----------- Power Ion Engine Engine Ion Engine Propulsion Compact Wheel Treads Light Treads Leg Improved Aluminum Leg Wheel Compact Wheel Utility Signal Interpreter Device Seismic Detector Storage Huge Storage Unit Processor Signal Interpreter Weapon Autogun Energy Gun Medium Laser Ballistic Gun Autogun Build | -11 -10 -10 ------- Run | Scr Mat Min Slots Evolved . | . . . Power . | . . . Propulsion . | . . . Utility . | . . . Weapon . | . . . Parts Attached 27 | 7 19 1 Power 3 | 1 2 . Engine 3 | 1 2 . Core . | . . . Reactor . | . . . Propulsion 10 | 3 6 1 Treads 2 | . 2 . Leg 2 | . 2 . Wheel 6 | 3 2 1 Hover . | . . . Flight . | . . . Utility 6 | 2 4 . Device 1 | 1 . . Storage 4 | 1 3 . Processor 1 | . 1 . Hackware . | . . . Protection . | . . . Artifact . | . . . Weapon 8 | 1 7 . Energy Gun 2 | . 2 . Energy Cannon . | . . . Ballistic Gun 6 | 1 5 . Ballistic Cannon . | . . . Launcher . | . . . Special Weapon . | . . . Impact Weapon . | . . . Slashing Weapon . | . . . Piercing Weapon . | . . . Special Melee Weapon . | . . . Unidentified Prototypes . | . . . Parts Lost 4 | . 3 1 Power 2 | . 2 . Propulsion 2 | . 1 1 Utility . | . . . Weapon . | . . . Highest Loss Streak 1 | . 1 1 To Critical Strikes . | . . . Average Slot Usage (%) 92 | . 89 95 Engine 10 | . 8 14 Leg 2 | . 4 . Wheel 21 | . 19 24 Device 2 | . 4 . Storage 14 | . 14 14 Processor 11 | . 9 14 Energy Gun 2 | . 3 . Ballistic Gun 25 | . 22 28 Naked Turns . | . . . Heaviest Build 91 | 13 91 91 Greatest Support 40 | 26 40 32 Greatest Overweight (x) 5 | . 5 5 Average Overweight (x) 1 | . 1 2 Largest Inventory Capacity 25 | 8 25 25 Average Capacity 19 | 7 17 25 Most Carried 25 | 5 25 25 Average Carried 16 | 3 12 24 Final Capacity 25 | 8 25 25 Final Carried 25 | 5 25 25 Class Distribution -------------------- 92% | Mutant 7% | Scavenger-Mutant Dominant Class ---------------- Mutant | -10/Materials Mutant | -10/Mines Resources | -11 -10 -10 ----------- Run | Scr Mat Min Matter Collected 694 | 268 216 210 Remotely . | . . . Salvage Created 627 | 80 297 250 Parts 44 | 8 27 9 Haulers Intercepted 1 | . 1 . Recyclers Shooed 2 | . . 2 Parts Field Recycled . | . . . Retrieved Matter . | . . . Parts Self-Destructed . | . . . Prevented . | . . . Kills | -11 -10 -10 ------- Run | Scr Mat Min Combat Hostiles Destroyed 13 | . 9 4 Guns 13 | . 9 4 Classes Destroyed 5 | 2 3 . Tunneler 2 | 2 . . Hauler 1 | . 1 . Recycler 3 | 1 . 2 Swarmer 7 | . 5 2 Grunt 6 | . 4 2 Best Kill Streak 3 | 2 3 2 Combat Bots Only 3 | . 3 2 Max Kills in Single Turn 1 | 1 1 1 Gunslinging . | . . . Exploded . | . . . Melee . | . . . Uniques/NPCs Destroyed . | . . . Combat | -11 -10 -10 -------- Run | Scr Mat Min Damage Taken 838 | . 573 265 Core 261 | . 171 90 Absorbed by Shields . | . . . Core Remaining (%) 100 | 100 . . Volleys Fired 68 | 6 42 20 Largest 2 | 1 2 2 Hottest 90 | 20 90 46 Shots Fired 129 | 6 83 40 Gun 129 | 6 83 40 Cannon . | . . . Launcher . | . . . Special . | . . . Kinetic 106 | 6 60 40 Thermal 19 | . 19 . Explosive . | . . . Electromagnetic 4 | . 4 . Robot Hit Streak 16 | 2 8 16 Robot Miss Streak 5 | 3 5 3 Penetration Max . | . . . Secondary Targets 3 | . 2 1 Max Gunslinging Chain 1 | . 1 1 Shots Hit Robots 77 | 3 45 29 Core Hits 28 | 3 16 9 Critical Kills 1 | 1 . . Critical Parts Destroyed 2 | . . 2 Critical Strikes 6 | 1 3 2 Burn 3 | . 3 . Destroy 3 | 1 . 2 Melee Attacks . | . . . Impact . | . . . Slashing . | . . . Piercing . | . . . Sneak Attacks . | . . . Combat Hostiles . | . . . Follow-up Attacks . | . . . Damage Inflicted 937 | 43 457 437 Guns 937 | 43 457 437 Cannons . | . . . Explosions . | . . . Melee . | . . . Ramming . | . . . Kinetic 749 | 43 269 437 Thermal 188 | . 188 . Explosive . | . . . Electromagnetic . | . . . Impact . | . . . Slashing . | . . . Piercing . | . . . Highest Corruption . | . . . Average Corruption . | . . . Corruption Purged . | . . . Corruption Blocked . | . . . Overload Shots . | . . . Overflow Damage . | . . . Projectiles . | . . . Explosions . | . . . Melee . | . . . Knockbacks . | . . . Impact . | . . . Kinetic . | . . . Secondary . | . . . Self-Inflicted Damage . | . . . Shots . | . . . Rammed . | . . . Targets Rammed . | . . . Kicked . | . . . Crushed . | . . . Highest Temperature 60 | . 60 56 Average Temperature 16 | . 18 12 Received Heat Transfer 285 | . 204 81 Siege Activations . | . . . Robots Corrupted . | . . . Combat Hostiles . | . . . Parts Fried . | . . . Impact Corruptions . | . . . Robots Melted . | . . . Combat Hostiles . | . . . Parts Melted 4 | . 4 . Heat Transferred 740 | . 740 . Parts Sabotaged . | . . . Parts Stolen . | . . . Parts Stripped . | . . . Power Chain Reactions . | . . . Missiles Intercepted . | . . . Alert | -11 -10 -10 ------- Run | Scr Mat Min Peak Influence 280 | 15 280 137 Initial 31 | . 9 31 Average 126 | 6 163 99 Maximum Alert Level 1 | . 1 . Low Security (%) 76 | 100 55 100 Level 1 23 | . 44 . Level 2 . | . . . Level 3 . | . . . Level 4 . | . . . Level 5 . | . . . High Security . | . . . Max Security . | . . . Squads Dispatched 3 | . 2 1 Investigation 2 | . 1 1 Extermination . | . . . Reinforcement 1 | . 1 . Assault . | . . . Garrison . | . . . Intercept . | . . . Searches Triggered . | . . . Construction Impeded . | . . . Haulers Reinforced . | . . . Active Scanning Responses . | . . . Cargo Convoy Interrupts . | . . . Stealth | -11 -10 -10 --------- Run | Scr Mat Min Distress Signals 2 | . 2 . Communications Jammed . | . . . Distress Signals . | . . . Times Spotted 22 | . 16 6 Peak Tracking Total 4 | . 4 3 Tactical Retreats 1 | . 1 . Traps | -11 -10 -10 ------- Run | Scr Mat Min Traps Triggered . | . . . Indirectly . | . . . Trap Hack Attempts . | . . . Triggered . | . . . Disarmed . | . . . Reprogrammed . | . . . Reused . | . . . Traps Extracted . | . . . Installed . | . . . Triggered . | . . . Machines | -11 -10 -10 ---------- Run | Scr Mat Min Machines Disabled 1 | . 1 . Max in Single Turn 1 | . 1 . Machines Sabotaged . | . . . Garrisons Compromised . | . . . Overloaded Fab Kills . | . . . Hacking | -11 -10 -10 --------- Run | Scr Mat Min Machines Accessed 4 | . 3 1 Terminals 3 | . 2 1 Fabricators . | . . . Repair Stations 1 | . 1 . Recycling Units . | . . . Scanalyzers . | . . . Garrison Access . | . . . Total Hacks 14 | . 9 5 Successful 7 | . 6 1 Failed 7 | . 3 4 Catastrophic . | . . . Database Lockouts . | . . . Manual 12 | . 7 5 Terminals 13 | . 8 5 Fabricators . | . . . Repair Stations 1 | . 1 . Recycling Units . | . . . Scanalyzers . | . . . Garrison Access . | . . . Terminal Hacks 3 | . 2 1 Robot Analysis 3 | . 2 1 Fabricator Hacks . | . . . Repair Station Hacks . | . . . Recycling Unit Hacks . | . . . Scanalyzer . | . . . Garrison Access Hacks . | . . . Unauthorized Hacks 4 | . 4 . Terminals 3 | . 3 . Botnet 2 | . 2 . Operators 1 | . 1 . Fabricators . | . . . Repair Stations 1 | . 1 . Mechanics 1 | . 1 . Recycling Units . | . . . Scanalyzers . | . . . Garrison Access . | . . . Data Cores Recovered . | . . . Used . | . . . Hacking Detections 3 | . 2 1 Full Trace Events 3 | . 2 1 Feedback Events . | . . . Feedback Blocked . | . . . Robot Schematics Acquired . | . . . Robots Built . | . . . Authchips . | . . . Time . | . . . Total Robot Build Rating . | . . . Part Schematics Acquired . | . . . Parts Built . | . . . Authchips . | . . . Time . | . . . Total Part Build Rating . | . . . Parts Repaired . | . . . Time . | . . . Parts Recycled . | . . . Recycled Matter . | . . . Retrieved Matter . | . . . Retrieved Components . | . . . Parts Scanalyzed . | . . . Part Schematics Acquired . | . . . Parts Damaged . | . . . Bothacking | -11 -10 -10 ------------ Run | Scr Mat Min Used RIF Installer . | . . . Robots Hacked . | . . . Non-combat . | . . . Combat . | . . . Robot Hacks Applied . | . . . Relay Couplers Released . | . . . Fabnet Peak Effective % . | . . . Robots Rewired . | . . . Allies Hacked . | . . . Hacks Repelled . | . . . Allies | -11 -10 -10 -------- Run | Scr Mat Min Total Allies . | . . . Largest Group . | . . . Highest-Rated Group . | . . . Highest-Rated Ally . | . . . Total Orders . | . . . Ally Attacks . | . . . Total Damage . | . . . Kills . | . . . Allies Corrupted . | . . . Allies Melted . | . . . Intel | -11 -10 -10 ------- Run | Scr Mat Min Robot Analysis Total 3 | . 2 1 Derelict Logs Recovered 3 | . . 3 Drone Launches . | . . . Drone Recoveries . | . . . Exploration | -11 -10 -10 ------------- Run | Scr Mat Min Turns Passed 960 | 65 503 392 Spaces Moved 574 | 43 294 237 Core 1 | 1 . . Treads 10 | . 10 . Legs 52 | . 52 . Wheels 511 | 42 232 237 Hover . | . . . Flight . | . . . Fastest Speed 50 | 50 80 130 Average Speed 121 | 89 111 138 Slowest Speed 190 | 100 190 175 Overloaded Moves . | . . . Propulsion Burnouts . | . . . Robots Hopped . | . . . Cave-ins Triggered . | . . . Exploration Rate (%) 39 | 4 43 70 Regions Visited 2 Branch Regions 1 Pre-discovered Areas 1 | . . 1 Known Exits Taken 1 | . 1 . Unknown Exits Taken 1 | 1 . . Scrap Searched 1 | . . 1 Spaces Dug . | . . . Terrain Destroyed . | . . . Melee . | . . . Projectile . | . . . AOE . | . . . Terrain Rammed . | . . . Walls Destroyed . | . . . Machines Disabled . | . . . Actions | -11 -10 -10 --------- Run | Scr Mat Min Total 723 | 60 391 272 Wait 12 | . 4 8 Move 572 | 42 293 237 Hop . | . . . Pick Up 27 | 4 20 3 Fast Attach 15 | 7 7 1 Attach 2 | . 2 . Detach 5 | 1 4 . Swap 10 | . 10 . Drop 12 | . 9 3 Fire 68 | 6 42 20 Melee . | . . . Ram . | . . . Kick . | . . . Crush . | . . . Escape Stasis . | . . . Rewire . | . . . Trap . | . . . Miscellaneous . | . . . Route ------- -11/Scrapyard -10/Materials (discovered 2 exits: *Min x2) -10/Mines History --------- Turn | Location | Event 12 | -11/Scrapyard | Discovered new exit (range 16) 66 | -11/Scrapyard | Entered Materials 230 | -10/Materials | Discovered new exit (range 6) 236 | -10/Materials | Identified exit to Mines 291 | -10/Materials | Core integrity fell below 50% 300 | -10/Materials | Build established: Mutant 367 | -10/Materials | Discovered exit to Mines (range 11) 569 | -10/Materials | Entered Mines 581 | -10/Mines | Core integrity fell below 20% 645 | -10/Mines | Learned 8 Materials zone layouts 736 | -10/Mines | Found a damaged Exp. Sensor Array with a note attached 739 | -10/Mines | Found Prototype Device 773 | -10/Mines | Learned location of Storage (-8) 794 | -10/Mines | A weapon hastily lodged in a ceiling crevice suddenly fell to the ground 852 | -10/Mines | Learned Materials garrison access intel 961 | -10/Mines | Destroyed by G-34 Mercenary with Small Laser Last Messages --------------- ambush while sneaking around Materials again, ha." 00739_ Dropped EM Pulse Gun. 00739_ Acquired Prototype Device. 00757_ K-01 Serf collects debris. 00773_ Acquired derelict log, extracted data. World map updated: -8/Storage. 00794_ A Mak. Spear has been hastily shoved under some rubble with a note attached: "Stab them where it hurts!" 00796_ Dropped Lgt. Assault Rifle. 00797_ Acquired Mak. Spear. 00801_ K-01 Serf collects debris. 00851_ Searching scrap... 00851_ Found Sml. Laser. 00851_ Found Lgt. Cannon. 00851_ Found 37 Matter. 00852_ Acquired derelict log, extracted data. Data stored: Materials garrison access intel. 00934_ K-01 Serf collects debris. 00960_ G-47 Trooper destroyed. 00960_ Switching to secondary target: G-34 Mercenary. Map ----- +----------------------------------------------------+ | | | | | | | | | ?????????????????????????????????????????????????? | | ?????????????????????????????????????????????????? | | ???????????????????####??????????????????????????? | | ??????????????????## ##?####???####?????????????? | | ????????????????### ### ##?# ###???????????? | | ???????????????## ## ##??????????? | | ???????????????# #??????????? | | ???????????????# ### #??????????? | | ??????????????## ##?## #??????????? | | ????????????### #???# ##??????????? | | ??????????### ##???# ##???????????? | | ?????????## ##????## #????????????? | | ?????????# #??????## ##????????????? | | ?????????# ##??????###########?????????????? | | ?????????## #####??????????????????????????? | | ??????????## ##?????????????????????????? | | ???????????# ####??????????????????????? | | ???????????## ##?????????????????????? | | ????????????## #?????????????????????? | | ?????????????# #?????????????????????? | | ?????????????# #?????? "?????????????? | | ?????????????# @##????"" "?????????????? | | ?????????????# #g%#### """ """ #?????????? | | ??????????#### # ! #?????????? | | ?????????## ## """ """ #?????????? | | ????????## ## ######## """ "?????????????? | | ????????# ## ##??????? """ "?????????????? | | ????????# ### #????????? ?????????????? | | ????????# #??????????"" ?????????????? | | ???????## #???????????" ????????????? | | ??????## #### #???????????" ???????????? | | ??????# ### ##??????????? ?? ???????????? | | ?????## ## ##?????????????????????????? | | ????## ]%[ #?????????????????????????? | | ????# #???????????????????????? | | ????# #### ## ??????????????????? | | ????# #??#####?# #?????????????????? | | ????# ##????????# ??????????????????? | | ???## ##???????? #?????????????????? | | #### #????????? ??????????????????? | | # #????????? ??????????????????? | | ## ##?????????? ???????????????????? | | ### ####???????????? #???????????????????? | | ###?### ##?????????????????????????????????????? | | ??????## ##??????????????????????????????????????? | | ??????## ##??????????????????????????????????????? | +----------------------------------------------------+ Best States ------------- Heat Dissipation 25 Energy Generation 10 Energy Capacity 250 Matter Stores 300 Matter Capacity 300 Sight Range 16 Terrain Scan Density 10 Evasion (%) 55 Recoil Reduction 2 Item Schematics ----------------- None Robot Schematics ------------------ None Fabricated ------------ Nothing Alien Tech Used ----------------- None Achievements -------------- None Challenges ------------ None Game ------ Seed OpticalPlasmaScreen Manual? 0 Play Time 00:11:32 Cumulative 497.8 hours Start 2022.05.24 @ 11:28:53 End 2022.05.24 @ 11:38:20 Sessions 1 Manual Loads 0 Difficulty Rogue Special Mode None Game No. 409 Rogue 409 Adventurer 0 Explorer 0 Win Type - Total 3 Types 2/0/0/1/0/0/0/0/0 Lore% 69 Gallery% 80 Achievement% 66 Wizard Run 0 Options --------- ASCII 0 Keyboard 1 Movement Numpad Keybinds 0 Fullscreen 1 Font 12/Terminus Map View 83x54 Tactical HUD 1 Map Filters NONE Filters NONE Steam 1 RUN: 752c9318-7001-4512-9b23-898488d51496